[Event "Titled Tuesday Blitz July 11 Late 2023"]
[White "Keymer, Vincent"]
[Black "Rostomyan, Mikayel"]
[WhiteFideId "12940690"]
[BlackFideId "13313754"]
[WhiteElo "2928"]
[BlackElo "2645"]
[Result "1-0"]
[Round "8"]
[TimeControl "180+2"]
[Date "2023.07.11"]
[WhiteClock "0:00:05"]
[BlackClock "0:00:06"]
[Board "19"]

1. a3 {[%clk 0:02:59]}  h6 {[%clk 0:02:55]} 2. c4 {[%clk 0:02:57]}  Nf6 {[%clk 0:02:53]} 3. Nf3 {[%clk 0:02:56]}  d6 {[%clk 0:02:52]} 4. d4 {[%clk 0:02:56]}  Bg4 {[%clk 0:02:49]} 5. Qb3 {[%clk 0:02:55]}  Qc8 {[%clk 0:02:47]} 6. g3 {[%clk 0:02:55]}  Nc6 {[%clk 0:02:44]} 7. Nbd2 {[%clk 0:02:53]}  e5 {[%clk 0:02:40]} 8. d5 {[%clk 0:02:52]}  Ne7 {[%clk 0:02:40]} 9. h3 {[%clk 0:02:52]}  Bd7 {[%clk 0:02:37]} 10. e4 {[%clk 0:02:52]}  Ng6 {[%clk 0:02:37]} 11. Qc3 {[%clk 0:02:47]}  a5 {[%clk 0:02:36]} 12. c5 {[%clk 0:02:46]}  c6 {[%clk 0:02:29]} 13. Nc4 {[%clk 0:02:28]}  Nxe4 {[%clk 0:02:10]} 14. Qc2 {[%clk 0:02:21]}  cxd5 {[%clk 0:01:48]} 15. Nb6 {[%clk 0:02:19]}  Qd8 {[%clk 0:01:46]} 16. Nxa8 {[%clk 0:02:07]}  dxc5 {[%clk 0:01:20]} 17. Qb3 {[%clk 0:01:49]}  Qxa8 {[%clk 0:01:18]} 18. Qxd5 {[%clk 0:01:49]}  Bc6 {[%clk 0:01:18]} 19. Qd1 {[%clk 0:01:49]}  b6 {[%clk 0:01:07]} 20. Bg2 {[%clk 0:01:30]}  Be7 {[%clk 0:01:07]} 21. O-O {[%clk 0:01:28]}  O-O {[%clk 0:01:06]} 22. Qe2 {[%clk 0:01:17]}  f5 {[%clk 0:01:02]} 23. Nd2 {[%clk 0:00:58]}  Nc3 {[%clk 0:00:31]} 24. Qc4+ {[%clk 0:00:52]}  Nd5 {[%clk 0:00:31]} 25. Qc2 {[%clk 0:00:31]}  b5 {[%clk 0:00:24]} 26. a4 {[%clk 0:00:27]}  Nb4 {[%clk 0:00:21]} 27. Bxc6 {[%clk 0:00:26]}  Qxc6 {[%clk 0:00:15]} 28. Qb3+ {[%clk 0:00:26]}  c4 {[%clk 0:00:15]} 29. axb5 {[%clk 0:00:26]}  Qxb5 {[%clk 0:00:08]} 30. Qxc4+ {[%clk 0:00:26]}  Qxc4 {[%clk 0:00:06]} 31. Nxc4 {[%clk 0:00:27]}  Nd3 {[%clk 0:00:06]} 32. Rxa5 {[%clk 0:00:23]}  e4 {[%clk 0:00:06]} 33. Be3 {[%clk 0:00:19]}  f4 {[%clk 0:00:06]} 34. gxf4 {[%clk 0:00:19]}  Ngxf4 {[%clk 0:00:07]} 35. Kh2 {[%clk 0:00:18]}  Bg5 {[%clk 0:00:04]} 36. Rg1 {[%clk 0:00:13]}  Ne6 {[%clk 0:00:04]} 37. Rg2 {[%clk 0:00:09]}  Bxe3 {[%clk 0:00:04]} 38. fxe3 {[%clk 0:00:10]}  Ng5 {[%clk 0:00:03]} 39. h4 {[%clk 0:00:06]}  Nf3+ {[%clk 0:00:03]} 40. Kh3 {[%clk 0:00:07]}  Nde1 {[%clk 0:00:03]} 41. Rg6 {[%clk 0:00:03]}  Nd3 {[%clk 0:00:04]} 42. Ra7 {[%clk 0:00:02]}  Rf7 {[%clk 0:00:02]} 43. Rxf7 {[%clk 0:00:02]}  Kxf7 {[%clk 0:00:03]} 44. Ra6 {[%clk 0:00:02]}  g5 {[%clk 0:00:04]} 45. hxg5 {[%clk 0:00:02]}  hxg5 {[%clk 0:00:04]} 46. Kg4 {[%clk 0:00:03]}  Nf2+ {[%clk 0:00:04]} 47. Kf5 {[%clk 0:00:04]}  g4 {[%clk 0:00:04]} 48. Ne5+ {[%clk 0:00:03]}  Ke8 {[%clk 0:00:04]} 49. Nxg4 {[%clk 0:00:03]}  Nh4+ {[%clk 0:00:02]} 50. Kg5 {[%clk 0:00:04]}  Nf3+ {[%clk 0:00:03]} 51. Kh5 {[%clk 0:00:04]}  Nd3 {[%clk 0:00:03]} 52. Nf6+ {[%clk 0:00:05]}  Kd8 {[%clk 0:00:03]} 53. Nxe4 {[%clk 0:00:06]}  Nfe5 {[%clk 0:00:03]} 54. Kg5 {[%clk 0:00:05]}  Nc4 {[%clk 0:00:03]} 55. b3 {[%clk 0:00:03]}  Nxe3 {[%clk 0:00:03]} 56. Kf6 {[%clk 0:00:03]}  Kc7 {[%clk 0:00:03]} 57. Re6 {[%clk 0:00:03]}  Nd5+ {[%clk 0:00:04]} 58. Kf5 {[%clk 0:00:03]}  N5b4 {[%clk 0:00:03]} 59. Rh6 {[%clk 0:00:02]}  Nc6 {[%clk 0:00:04]} 60. Nd2 {[%clk 0:00:02]}  Ndb4 {[%clk 0:00:04]} 61. Ke4 {[%clk 0:00:02]}  Kb6 {[%clk 0:00:04]} 62. Nf3 {[%clk 0:00:03]}  Kb5 {[%clk 0:00:05]} 63. Nd4+ {[%clk 0:00:02]}  Nxd4 {[%clk 0:00:04]} 64. Kxd4 {[%clk 0:00:03]}  Nc6+ {[%clk 0:00:04]} 65. Kc3 {[%clk 0:00:03]}  Na5 {[%clk 0:00:05]} 66. Rh5+ {[%clk 0:00:04]}  Kb6 {[%clk 0:00:05]} 67. Rxa5 {[%clk 0:00:04]}  Kxa5 {[%clk 0:00:06]} 68. Kc4 {[%clk 0:00:05]}  Kb6 {[%clk 0:00:06]} 69. Kb4 {[%clk 0:00:05]} 1-0


[Site "https://www.chess.com"]

[Event "Titled Tuesday Blitz July 11 Late 2023"]
[White "Grigoriants, Sergey"]
[Black "Bjelobrk, Igor"]
[WhiteFideId "4130804"]
[BlackFideId "4300726"]
[WhiteElo "2925"]
[BlackElo "2645"]
[Result "1-0"]
[Round "8"]
[TimeControl "180+2"]
[Date "2023.07.11"]
[WhiteClock "0:00:09"]
[BlackClock "0:00:01"]
[Board "20"]

1. d4 {[%clk 0:02:56]}  e6 {[%clk 0:02:58]} 2. c4 {[%clk 0:02:55]}  b6 {[%clk 0:02:55]} 3. a3 {[%clk 0:02:43]}  Bb7 {[%clk 0:02:51]} 4. Nc3 {[%clk 0:02:43]}  f5 {[%clk 0:02:46]} 5. d5 {[%clk 0:02:39]}  Nf6 {[%clk 0:02:44]} 6. g3 {[%clk 0:02:37]}  Na6 {[%clk 0:02:43]} 7. Bg2 {[%clk 0:02:37]}  Nc5 {[%clk 0:02:43]} 8. Qc2 {[%clk 0:02:27]}  Bd6 {[%clk 0:02:31]} 9. Nh3 {[%clk 0:02:25]}  O-O {[%clk 0:02:23]} 10. O-O {[%clk 0:02:25]}  Be5 {[%clk 0:01:48]} 11. Nf4 {[%clk 0:02:15]}  Qe7 {[%clk 0:01:42]} 12. Bd2 {[%clk 0:02:02]}  Rae8 {[%clk 0:01:34]} 13. Rad1 {[%clk 0:02:01]}  Nce4 {[%clk 0:01:23]} 14. Nxe4 {[%clk 0:01:48]}  fxe4 {[%clk 0:01:22]} 15. Bxe4 {[%clk 0:00:54]}  Nxe4 {[%clk 0:01:17]} 16. Qxe4 {[%clk 0:00:55]}  Bxf4 {[%clk 0:01:16]} 17. Bxf4 {[%clk 0:00:53]}  exd5 {[%clk 0:01:16]} 18. Qxe7 {[%clk 0:00:42]}  Rxe7 {[%clk 0:01:17]} 19. Rfe1 {[%clk 0:00:42]}  d6 {[%clk 0:00:27]} 20. cxd5 {[%clk 0:00:42]}  Rfe8 {[%clk 0:00:21]} 21. e3 {[%clk 0:00:36]}  Bc8 {[%clk 0:00:21]} 22. f3 {[%clk 0:00:35]}  h6 {[%clk 0:00:21]} 23. h4 {[%clk 0:00:34]}  Kf7 {[%clk 0:00:20]} 24. e4 {[%clk 0:00:33]}  Kf6 {[%clk 0:00:21]} 25. Bd2 {[%clk 0:00:30]}  g5 {[%clk 0:00:20]} 26. hxg5+ {[%clk 0:00:29]}  hxg5 {[%clk 0:00:21]} 27. Bc3+ {[%clk 0:00:29]}  Kg6 {[%clk 0:00:21]} 28. g4 {[%clk 0:00:30]}  Rh7 {[%clk 0:00:22]} 29. Kg2 {[%clk 0:00:29]}  Ba6 {[%clk 0:00:14]} 30. Rh1 {[%clk 0:00:29]}  Ree7 {[%clk 0:00:13]} 31. Rxh7 {[%clk 0:00:28]}  Rxh7 {[%clk 0:00:14]} 32. Bd4 {[%clk 0:00:26]}  Bb5 {[%clk 0:00:10]} 33. Rc1 {[%clk 0:00:26]}  a5 {[%clk 0:00:08]} 34. Bf2 {[%clk 0:00:25]}  a4 {[%clk 0:00:08]} 35. Rc3 {[%clk 0:00:24]}  Be8 {[%clk 0:00:08]} 36. Bg3 {[%clk 0:00:23]}  Rg7 {[%clk 0:00:08]} 37. e5 {[%clk 0:00:20]}  dxe5 {[%clk 0:00:08]} 38. Bxe5 {[%clk 0:00:21]}  Rd7 {[%clk 0:00:07]} 39. Rc6+ {[%clk 0:00:21]}  Kf7 {[%clk 0:00:06]} 40. Rxc7 {[%clk 0:00:22]}  Rxc7 {[%clk 0:00:06]} 41. Bxc7 {[%clk 0:00:23]}  b5 {[%clk 0:00:06]} 42. Kf2 {[%clk 0:00:22]}  Bd7 {[%clk 0:00:07]} 43. Ke3 {[%clk 0:00:23]}  Kf6 {[%clk 0:00:06]} 44. Bd8+ {[%clk 0:00:22]}  Kg6 {[%clk 0:00:06]} 45. Ke4 {[%clk 0:00:21]}  Bc8 {[%clk 0:00:04]} 46. Ke5 {[%clk 0:00:17]}  Bb7 {[%clk 0:00:05]} 47. Be7 {[%clk 0:00:17]}  Ba8 {[%clk 0:00:03]} 48. Kd4 {[%clk 0:00:16]}  Bb7 {[%clk 0:00:02]} 49. Kc5 {[%clk 0:00:16]}  Bc8 {[%clk 0:00:01]} 50. Kxb5 {[%clk 0:00:16]}  Bd7+ {[%clk 0:00:01]} 51. Kb4 {[%clk 0:00:15]}  Be8 {[%clk 0:00:02]} 52. b3 {[%clk 0:00:15]}  axb3 {[%clk 0:00:03]} 53. Kxb3 {[%clk 0:00:16]}  Bd7 {[%clk 0:00:03]} 54. a4 {[%clk 0:00:15]}  Bc8 {[%clk 0:00:03]} 55. a5 {[%clk 0:00:13]}  Ba6 {[%clk 0:00:04]} 56. d6 {[%clk 0:00:14]}  Kf7 {[%clk 0:00:03]} 57. Bxg5 {[%clk 0:00:13]}  Ke6 {[%clk 0:00:04]} 58. Bf4 {[%clk 0:00:11]}  Be2 {[%clk 0:00:04]} 59. g5 {[%clk 0:00:10]}  Bxf3 {[%clk 0:00:04]} 60. a6 {[%clk 0:00:11]}  Kf5 {[%clk 0:00:01]} 61. d7 {[%clk 0:00:09]} 1-0


[Site "https://www.chess.com"]

[Event "Titled Tuesday Blitz July 11 Late 2023"]
[White "Fiorito, Francisco"]
[Black "Gordievsky, Dmitry"]
[WhiteFideId "180165"]
[BlackFideId "24112798"]
[WhiteElo "2591"]
[BlackElo "2908"]
[Result "0-1"]
[Round "8"]
[TimeControl "180+2"]
[Date "2023.07.11"]
[WhiteClock "0:00:01"]
[BlackClock "0:00:22"]
[Board "23"]

1. Nf3 {[%clk 0:03:00]}  c5 {[%clk 0:02:59]} 2. b3 {[%clk 0:03:01]}  Nf6 {[%clk 0:02:59]} 3. Bb2 {[%clk 0:03:01]}  g6 {[%clk 0:02:59]} 4. e3 {[%clk 0:02:57]}  Bg7 {[%clk 0:02:59]} 5. c4 {[%clk 0:02:57]}  O-O {[%clk 0:02:58]} 6. Qc2 {[%clk 0:02:52]}  b6 {[%clk 0:02:58]} 7. Nc3 {[%clk 0:02:51]}  Bb7 {[%clk 0:02:58]} 8. Be2 {[%clk 0:02:52]}  Nc6 {[%clk 0:02:58]} 9. a3 {[%clk 0:02:49]}  e6 {[%clk 0:02:58]} 10. O-O {[%clk 0:02:47]}  d5 {[%clk 0:02:55]} 11. cxd5 {[%clk 0:02:41]}  exd5 {[%clk 0:02:55]} 12. d4 {[%clk 0:02:17]}  cxd4 {[%clk 0:02:54]} 13. exd4 {[%clk 0:02:06]}  Ne4 {[%clk 0:02:49]} 14. Rad1 {[%clk 0:01:27]}  Re8 {[%clk 0:02:33]} 15. Rfe1 {[%clk 0:01:20]}  Rc8 {[%clk 0:02:32]} 16. Bb5 {[%clk 0:01:01]}  a6 {[%clk 0:02:27]} 17. Bxc6 {[%clk 0:01:01]}  Rxc6 {[%clk 0:02:27]} 18. Qd3 {[%clk 0:00:59]}  Rce6 {[%clk 0:02:24]} 19. h3 {[%clk 0:00:49]}  h6 {[%clk 0:02:24]} 20. Ne5 {[%clk 0:00:46]}  g5 {[%clk 0:01:51]} 21. Qc2 {[%clk 0:00:18]}  f6 {[%clk 0:01:44]} 22. Nf3 {[%clk 0:00:08]}  Qc8 {[%clk 0:01:33]} 23. Qd3 {[%clk 0:00:07]}  h5 {[%clk 0:01:22]} 24. Rc1 {[%clk 0:00:07]}  Qd7 {[%clk 0:01:22]} 25. Qf1 {[%clk 0:00:04]}  g4 {[%clk 0:01:17]} 26. hxg4 {[%clk 0:00:05]}  hxg4 {[%clk 0:01:18]} 27. Nh4 {[%clk 0:00:05]}  Nd2 {[%clk 0:01:19]} 28. Rxe6 {[%clk 0:00:03]}  Nxf1 {[%clk 0:01:19]} 29. Rxe8+ {[%clk 0:00:03]}  Qxe8 {[%clk 0:01:19]} 30. Rxf1 {[%clk 0:00:04]}  Qe6 {[%clk 0:00:54]} 31. g3 {[%clk 0:00:04]}  Bh6 {[%clk 0:00:54]} 32. Bc1 {[%clk 0:00:02]}  Bxc1 {[%clk 0:00:32]} 33. Rxc1 {[%clk 0:00:03]}  Bc6 {[%clk 0:00:33]} 34. Ng2 {[%clk 0:00:03]}  a5 {[%clk 0:00:25]} 35. Re1 {[%clk 0:00:03]}  Qf5 {[%clk 0:00:24]} 36. a4 {[%clk 0:00:04]}  Qc2 {[%clk 0:00:23]} 37. Re3 {[%clk 0:00:04]}  Qxb3 {[%clk 0:00:23]} 38. Nf4 {[%clk 0:00:03]}  Bxa4 {[%clk 0:00:22]} 39. Ncxd5 {[%clk 0:00:03]}  Qd1+ {[%clk 0:00:22]} 40. Kg2 {[%clk 0:00:02]}  Bc6 {[%clk 0:00:23]} 41. Re7 {[%clk 0:00:02]}  Bxd5+ {[%clk 0:00:21]} 42. Nxd5 {[%clk 0:00:02]}  Qf3+ {[%clk 0:00:21]} 43. Kg1 {[%clk 0:00:02]}  Qxd5 {[%clk 0:00:22]} 44. Rd7 {[%clk 0:00:01]}  Qxd7 {[%clk 0:00:22]} 0-1


[Site "https://www.chess.com"]

[Event "Titled Tuesday Blitz July 11 Late 2023"]
[White "Todorovic, Bojan"]
[Black "Fantastic_Power"]
[WhiteFideId "917087"]
[WhiteElo "2418"]
[BlackElo "2746"]
[Result "1-0"]
[Round "8"]
[TimeControl "180+2"]
[Date "2023.07.11"]
[WhiteClock "0:01:33"]
[BlackClock "0:01:02"]
[Board "31"]

1. d4 {[%clk 0:02:59]}  Nf6 {[%clk 0:02:59]} 2. c4 {[%clk 0:02:58]}  Nc6 {[%clk 0:02:59]} 3. Nf3 {[%clk 0:02:57]}  e6 {[%clk 0:02:59]} 4. g3 {[%clk 0:02:55]}  Bb4+ {[%clk 0:02:59]} 5. Nbd2 {[%clk 0:02:52]}  O-O {[%clk 0:02:58]} 6. Bg2 {[%clk 0:02:52]}  d6 {[%clk 0:02:58]} 7. a3 {[%clk 0:02:49]}  Bxd2+ {[%clk 0:02:58]} 8. Bxd2 {[%clk 0:02:49]}  Qe7 {[%clk 0:02:56]} 9. b4 {[%clk 0:02:42]}  e5 {[%clk 0:02:55]} 10. d5 {[%clk 0:02:38]}  Nb8 {[%clk 0:02:48]} 11. Bc3 {[%clk 0:02:38]}  Ne4 {[%clk 0:02:37]} 12. Bb2 {[%clk 0:02:38]}  f5 {[%clk 0:02:37]} 13. O-O {[%clk 0:02:37]}  Nd7 {[%clk 0:02:36]} 14. Nd2 {[%clk 0:02:35]}  Ndf6 {[%clk 0:02:31]} 15. f3 {[%clk 0:02:31]}  Ng5 {[%clk 0:02:19]} 16. e3 {[%clk 0:02:21]}  f4 {[%clk 0:01:58]} 17. exf4 {[%clk 0:02:20]}  exf4 {[%clk 0:01:59]} 18. Re1 {[%clk 0:02:19]}  Qf7 {[%clk 0:01:58]} 19. h4 {[%clk 0:02:07]}  fxg3 {[%clk 0:01:35]} 20. hxg5 {[%clk 0:02:07]}  Qh5 {[%clk 0:01:35]} 21. Nf1 {[%clk 0:02:07]}  Qxg5 {[%clk 0:01:32]} 22. Qd2 {[%clk 0:02:00]}  Qh4 {[%clk 0:01:29]} 23. Bxf6 {[%clk 0:01:56]}  gxf6 {[%clk 0:01:22]} 24. Re4 {[%clk 0:01:54]}  Qh5 {[%clk 0:01:16]} 25. Rae1 {[%clk 0:01:50]}  Qg6 {[%clk 0:01:17]} 26. Re7 {[%clk 0:01:43]}  h5 {[%clk 0:01:14]} 27. Qf4 {[%clk 0:01:42]}  Rf7 {[%clk 0:01:11]} 28. Qxg3 {[%clk 0:01:41]}  Qxg3 {[%clk 0:01:10]} 29. Nxg3 {[%clk 0:01:41]}  h4 {[%clk 0:01:11]} 30. Nh5 {[%clk 0:01:39]}  Bf5 {[%clk 0:01:11]} 31. Kh2 {[%clk 0:01:33]}  Raf8 {[%clk 0:01:02]} 32. Bh3 {[%clk 0:01:33]} 1-0


[Site "https://www.chess.com"]

[Event "Titled Tuesday Blitz July 11 Late 2023"]
[White "Kaplan, Avi Harrison"]
[Black "Haydon, David L"]
[WhiteFideId "30934559"]
[BlackFideId "415405"]
[WhiteElo "2472"]
[BlackElo "2726"]
[Result "1-0"]
[Round "8"]
[TimeControl "180+2"]
[Date "2023.07.11"]
[WhiteClock "0:00:12"]
[BlackClock "0:00:00"]
[Board "32"]

1. Nf3 {[%clk 0:02:57]}  c6 {[%clk 0:02:59]} 2. b3 {[%clk 0:02:55]}  d5 {[%clk 0:02:59]} 3. Bb2 {[%clk 0:02:54]}  Nf6 {[%clk 0:02:59]} 4. g3 {[%clk 0:02:53]}  Bg4 {[%clk 0:02:57]} 5. Bg2 {[%clk 0:02:53]}  Bxf3 {[%clk 0:02:57]} 6. Bxf3 {[%clk 0:02:53]}  e6 {[%clk 0:02:58]} 7. O-O {[%clk 0:02:53]}  Bd6 {[%clk 0:02:58]} 8. d3 {[%clk 0:02:52]}  Nbd7 {[%clk 0:02:58]} 9. Nd2 {[%clk 0:02:52]}  Qe7 {[%clk 0:02:57]} 10. e4 {[%clk 0:02:52]}  O-O {[%clk 0:02:47]} 11. Qe2 {[%clk 0:02:50]}  dxe4 {[%clk 0:02:45]} 12. Nxe4 {[%clk 0:02:48]}  Nxe4 {[%clk 0:02:43]} 13. Bxe4 {[%clk 0:02:45]}  Rae8 {[%clk 0:02:38]} 14. Bg2 {[%clk 0:02:38]}  f5 {[%clk 0:02:35]} 15. Rfe1 {[%clk 0:02:36]}  e5 {[%clk 0:02:31]} 16. c4 {[%clk 0:02:19]}  Qf7 {[%clk 0:02:28]} 17. Rad1 {[%clk 0:02:09]}  Bb4 {[%clk 0:02:24]} 18. Rf1 {[%clk 0:02:06]}  Bc5 {[%clk 0:02:23]} 19. Qd2 {[%clk 0:01:57]}  Nf6 {[%clk 0:02:13]} 20. d4 {[%clk 0:01:51]}  Rd8 {[%clk 0:02:01]} 21. d5 {[%clk 0:01:13]}  e4 {[%clk 0:01:55]} 22. Qg5 {[%clk 0:01:07]}  Ng4 {[%clk 0:01:40]} 23. h3 {[%clk 0:00:51]}  h6 {[%clk 0:01:35]} 24. Qf4 {[%clk 0:00:48]}  Bd6 {[%clk 0:01:30]} 25. Qc1 {[%clk 0:00:46]}  Ne5 {[%clk 0:01:26]} 26. dxc6 {[%clk 0:00:45]}  Nxc6 {[%clk 0:01:24]} 27. Qe3 {[%clk 0:00:42]}  Rfe8 {[%clk 0:01:11]} 28. Qe2 {[%clk 0:00:38]}  Be5 {[%clk 0:01:09]} 29. Rxd8 {[%clk 0:00:35]}  Rxd8 {[%clk 0:01:07]} 30. Bxe5 {[%clk 0:00:30]}  Nxe5 {[%clk 0:01:07]} 31. Rd1 {[%clk 0:00:31]}  Qe7 {[%clk 0:01:00]} 32. f3 {[%clk 0:00:18]}  Qc5+ {[%clk 0:00:55]} 33. Kh2 {[%clk 0:00:18]}  Rxd1 {[%clk 0:00:53]} 34. Qxd1 {[%clk 0:00:18]}  exf3 {[%clk 0:00:43]} 35. Bxf3 {[%clk 0:00:18]}  Qf2+ {[%clk 0:00:36]} 36. Bg2 {[%clk 0:00:18]}  Kh7 {[%clk 0:00:24]} 37. Qh5 {[%clk 0:00:14]}  b6 {[%clk 0:00:15]} 38. Qd1 {[%clk 0:00:13]}  a5 {[%clk 0:00:00]} 39. Qf1 {[%clk 0:00:12]} 1-0


[Site "https://www.chess.com"]

[Event "Titled Tuesday Blitz July 11 Late 2023"]
[White "Skliarov, Viktor"]
[Black "Pranav, V"]
[WhiteFideId "14106736"]
[BlackFideId "25060783"]
[WhiteElo "2632"]
[BlackElo "2945"]
[Result "1-0"]
[Round "8"]
[TimeControl "180+2"]
[Date "2023.07.11"]
[WhiteClock "0:00:28"]
[BlackClock "0:01:18"]
[Board "34"]

1. e4 {[%clk 0:03:00]}  e5 {[%clk 0:03:00]} 2. Nc3 {[%clk 0:03:01]}  Nf6 {[%clk 0:03:00]} 3. Bc4 {[%clk 0:03:01]}  Nc6 {[%clk 0:02:59]} 4. d3 {[%clk 0:03:01]}  Bc5 {[%clk 0:03:00]} 5. a3 {[%clk 0:03:01]}  a6 {[%clk 0:02:59]} 6. h3 {[%clk 0:03:01]}  d6 {[%clk 0:02:59]} 7. Nge2 {[%clk 0:03:02]}  h6 {[%clk 0:02:58]} 8. Ng3 {[%clk 0:03:01]}  Be6 {[%clk 0:02:58]} 9. Nd5 {[%clk 0:03:01]}  Bd7 {[%clk 0:02:37]} 10. c3 {[%clk 0:02:52]}  Nxd5 {[%clk 0:02:33]} 11. Bxd5 {[%clk 0:02:50]}  Ne7 {[%clk 0:02:31]} 12. Bxb7 {[%clk 0:02:22]}  Ra7 {[%clk 0:02:28]} 13. Bd5 {[%clk 0:02:22]}  Nxd5 {[%clk 0:02:28]} 14. exd5 {[%clk 0:02:22]}  O-O {[%clk 0:02:29]} 15. b4 {[%clk 0:02:02]}  Bb6 {[%clk 0:02:27]} 16. Be3 {[%clk 0:02:03]}  Bxe3 {[%clk 0:02:14]} 17. fxe3 {[%clk 0:02:03]}  Qh4 {[%clk 0:02:15]} 18. Qf3 {[%clk 0:02:01]}  f5 {[%clk 0:02:14]} 19. O-O {[%clk 0:02:00]}  a5 {[%clk 0:02:13]} 20. Qf2 {[%clk 0:01:56]}  Qg5 {[%clk 0:02:07]} 21. e4 {[%clk 0:01:53]}  axb4 {[%clk 0:02:04]} 22. Qxa7 {[%clk 0:01:52]}  Qxg3 {[%clk 0:02:03]} 23. Rf3 {[%clk 0:01:44]}  Qg5 {[%clk 0:02:00]} 24. Qxc7 {[%clk 0:01:42]}  Rf7 {[%clk 0:01:54]} 25. axb4 {[%clk 0:01:29]}  Kh7 {[%clk 0:01:52]} 26. Qxd6 {[%clk 0:01:19]}  f4 {[%clk 0:01:52]} 27. Kh2 {[%clk 0:01:05]}  Qh5 {[%clk 0:01:46]} 28. Ra7 {[%clk 0:00:54]}  Bg4 {[%clk 0:01:26]} 29. Rxf7 {[%clk 0:00:46]}  Bxf3 {[%clk 0:01:27]} 30. Qe7 {[%clk 0:00:28]}  Qg6 {[%clk 0:01:18]} 31. Rxg7+ {[%clk 0:00:28]} 1-0


[Site "https://www.chess.com"]

[Event "Titled Tuesday Blitz July 11 Late 2023"]
[White "Seletsky, Grigory"]
[Black "Oro, Faustino"]
[WhiteFideId "14112191"]
[BlackFideId "20000197"]
[WhiteElo "2444"]
[BlackElo "2736"]
[Result "1-0"]
[Round "8"]
[TimeControl "180+2"]
[Date "2023.07.11"]
[WhiteClock "0:00:18"]
[BlackClock "0:00:01"]
[Board "38"]

1. a3 {[%clk 0:02:57]}  Nf6 {[%clk 0:02:58]} 2. c4 {[%clk 0:02:58]}  e5 {[%clk 0:02:58]} 3. Nc3 {[%clk 0:02:58]}  g6 {[%clk 0:02:52]} 4. d3 {[%clk 0:02:58]}  Bg7 {[%clk 0:02:52]} 5. g3 {[%clk 0:02:59]}  O-O {[%clk 0:02:53]} 6. Bg2 {[%clk 0:02:59]}  Re8 {[%clk 0:02:53]} 7. e4 {[%clk 0:02:58]}  d6 {[%clk 0:02:51]} 8. Nge2 {[%clk 0:02:59]}  Nc6 {[%clk 0:02:50]} 9. O-O {[%clk 0:02:59]}  a5 {[%clk 0:02:51]} 10. h3 {[%clk 0:03:00]}  h6 {[%clk 0:02:51]} 11. f4 {[%clk 0:03:00]}  exf4 {[%clk 0:02:45]} 12. gxf4 {[%clk 0:02:54]}  Nh5 {[%clk 0:02:38]} 13. d4 {[%clk 0:02:50]}  Qh4 {[%clk 0:02:31]} 14. d5 {[%clk 0:02:49]}  Nd8 {[%clk 0:02:16]} 15. Rf3 {[%clk 0:02:47]}  g5 {[%clk 0:02:04]} 16. f5 {[%clk 0:02:36]}  Be5 {[%clk 0:01:34]} 17. Be3 {[%clk 0:02:29]}  g4 {[%clk 0:01:31]} 18. hxg4 {[%clk 0:02:29]}  Qxg4 {[%clk 0:01:31]} 19. Bd4 {[%clk 0:02:20]}  Kh7 {[%clk 0:01:26]} 20. Qd3 {[%clk 0:02:17]}  Rg8 {[%clk 0:01:24]} 21. Rf2 {[%clk 0:02:16]}  f6 {[%clk 0:01:11]} 22. Bxe5 {[%clk 0:01:58]}  fxe5 {[%clk 0:01:10]} 23. Kf1 {[%clk 0:01:52]}  Nf7 {[%clk 0:01:09]} 24. Ke1 {[%clk 0:01:41]}  Ng5 {[%clk 0:00:54]} 25. Kd2 {[%clk 0:01:38]}  Qh4 {[%clk 0:00:53]} 26. Raf1 {[%clk 0:01:35]}  Bd7 {[%clk 0:00:48]} 27. Bf3 {[%clk 0:01:24]}  Nf6 {[%clk 0:00:40]} 28. Qe3 {[%clk 0:01:21]}  Nxf3+ {[%clk 0:00:29]} 29. Qxf3 {[%clk 0:01:16]}  Ng4 {[%clk 0:00:26]} 30. Rg2 {[%clk 0:01:08]}  Qg5+ {[%clk 0:00:26]} 31. Kd3 {[%clk 0:01:09]}  h5 {[%clk 0:00:20]} 32. Rh1 {[%clk 0:01:07]}  Kg7 {[%clk 0:00:15]} 33. Ng3 {[%clk 0:00:59]}  Kf7 {[%clk 0:00:07]} 34. Nxh5 {[%clk 0:00:56]}  Ke7 {[%clk 0:00:03]} 35. Rhg1 {[%clk 0:00:38]}  Qxh5 {[%clk 0:00:02]} 36. Rxg4 {[%clk 0:00:37]}  Rxg4 {[%clk 0:00:03]} 37. Qxg4 {[%clk 0:00:37]}  Qxg4 {[%clk 0:00:02]} 38. Rxg4 {[%clk 0:00:38]}  Kf7 {[%clk 0:00:03]} 39. Rh4 {[%clk 0:00:34]}  Kg7 {[%clk 0:00:03]} 40. Nd1 {[%clk 0:00:25]}  Rg8 {[%clk 0:00:03]} 41. Rg4+ {[%clk 0:00:23]}  Kf7 {[%clk 0:00:03]} 42. Rxg8 {[%clk 0:00:23]}  Kxg8 {[%clk 0:00:04]} 43. b4 {[%clk 0:00:22]}  axb4 {[%clk 0:00:04]} 44. axb4 {[%clk 0:00:21]}  Kg7 {[%clk 0:00:05]} 45. c5 {[%clk 0:00:21]}  Bb5+ {[%clk 0:00:04]} 46. Ke3 {[%clk 0:00:21]}  Kf6 {[%clk 0:00:04]} 47. Nc3 {[%clk 0:00:21]}  Bc4 {[%clk 0:00:04]} 48. c6 {[%clk 0:00:19]}  bxc6 {[%clk 0:00:03]} 49. dxc6 {[%clk 0:00:20]}  Ke7 {[%clk 0:00:03]} 50. Nd5+ {[%clk 0:00:20]}  Kd8 {[%clk 0:00:02]} 51. f6 {[%clk 0:00:19]}  Ke8 {[%clk 0:00:01]} 52. Nxc7+ {[%clk 0:00:18]} 1-0


[Site "https://www.chess.com"]